[Event "*** Titled Tuesday Blitz"]
[Site "Chess.com"]
[Date "2020.04.14"]
[Round "4"]
[White "WinningButNotReally"]
[Black "Treacherous_horse64"]
[Result "1-0"]
[WhiteElo "2425"]
[BlackElo "2210"]
[TimeControl "180+1"]
[EndTime "10:38:57 PDT"]
[Termination "WinningButNotReally won by resignation"]

1. Nf3 {[%clk 0:03:00.9]} 1... Nf6 {[%clk 0:02:59.9]} 2. c4 {[%clk 0:02:59.3]}
2... e6 {[%clk 0:02:59.8]} 3. Nc3 {[%clk 0:02:58.5]} 3... d5 {[%clk 0:03:00.1]}
4. g3 {[%clk 0:02:56.8]} 4... dxc4 {[%clk 0:02:59.1]} 5. e4 {[%clk 0:02:55.9]}
5... c5 {[%clk 0:02:56.9]} 6. Bxc4 {[%clk 0:02:55.8]} 6... a6 {[%clk 0:02:57]}
7. a4 {[%clk 0:02:54.4]} 7... b6 {[%clk 0:02:56.7]} 8. O-O {[%clk 0:02:49.9]}
8... Bb7 {[%clk 0:02:55.9]} 9. Re1 {[%clk 0:02:50.1]} 9... Be7 {[%clk 0:02:55]}
10. d4 {[%clk 0:02:49.7]} 10... cxd4 {[%clk 0:02:54.7]} 11. Nxd4 {[%clk
0:02:49.9]} 11... Nc6 {[%clk 0:02:45]} 12. Nxc6 {[%clk 0:02:42.7]} 12... Bxc6
{[%clk 0:02:45.9]} 13. Be3 {[%clk 0:02:35.5]} 13... Qc7 {[%clk 0:02:38.8]} 14.
Qb3 {[%clk 0:02:29]} 14... Nd7 {[%clk 0:02:31.7]} 15. Bf4 {[%clk 0:02:17]} 15...
Qb7 {[%clk 0:02:08.6]} 16. Qc2 {[%clk 0:02:11.7]} 16... O-O {[%clk 0:01:52.7]}
17. Bf1 {[%clk 0:01:48.6]} 17... Rac8 {[%clk 0:01:32.7]} 18. Bg2 {[%clk
0:01:46.2]} 18... b5 {[%clk 0:01:29.8]} 19. axb5 {[%clk 0:01:43]} 19... axb5
{[%clk 0:01:27.9]} 20. Qd2 {[%clk 0:01:19.7]} 20... Nc5 {[%clk 0:01:23.9]} 21.
f3 {[%clk 0:00:28]} 21... Nb3 {[%clk 0:01:20.5]} 22. Qe2 {[%clk 0:00:21.9]}
22... Nxa1 {[%clk 0:01:20.4]} 23. Rxa1 {[%clk 0:00:22.8]} 23... Ra8 {[%clk
0:01:20]} 24. Rd1 {[%clk 0:00:22.1]} 24... Bc5+ {[%clk 0:01:20]} 25. Be3 {[%clk
0:00:21.6]} 25... Bxe3+ {[%clk 0:01:19.6]} 26. Qxe3 {[%clk 0:00:22.5]} 26...
Rfd8 {[%clk 0:01:19]} 27. Rc1 {[%clk 0:00:20.8]} 27... Qa7 {[%clk 0:01:16]} 28.
Qxa7 {[%clk 0:00:20.8]} 28... Rxa7 {[%clk 0:01:16.9]} 29. Ne2 {[%clk 0:00:21]}
29... Be8 {[%clk 0:01:16.6]} 30. Rc2 {[%clk 0:00:18.3]} 30... Rad7 {[%clk
0:01:16.2]} 31. Bf1 {[%clk 0:00:10.6]} 31... Rd2 {[%clk 0:01:16.2]} 32. Rc7
{[%clk 0:00:11.3]} 32... Rxb2 {[%clk 0:01:15.4]} 33. Nc3 {[%clk 0:00:11.8]}
33... b4 {[%clk 0:01:14]} 34. Nb5 {[%clk 0:00:11.9]} 34... Bxb5 {[%clk
0:01:13.3]} 35. Bxb5 {[%clk 0:00:12.8]} 35... b3 {[%clk 0:01:13.7]} 36. e5
{[%clk 0:00:11.3]} 36... Rc2 {[%clk 0:01:13.9]} 37. Rb7 {[%clk 0:00:09.5]} 37...
b2 {[%clk 0:01:14.1]} 38. Bf1 {[%clk 0:00:10.2]} 38... Rd1 {[%clk 0:01:12.7]}
39. Rb8+ {[%clk 0:00:10.2]} 1-0

[Event "*** Titled Tuesday Blitz"]
[Site "Chess.com"]
[Date "2020.04.14"]
[Round "4"]
[White "OhanyanEminChess"]
[Black "AsaHoffmann"]
[Result "1-0"]
[WhiteElo "2547"]
[BlackElo "2313"]
[TimeControl "180+1"]
[EndTime "10:38:58 PDT"]
[Termination "OhanyanEminChess won by checkmate"]

1. e4 {[%clk 0:03:00.9]} 1... d6 {[%clk 0:02:58.9]} 2. d4 {[%clk 0:03:00.3]}
2... Nf6 {[%clk 0:02:58.3]} 3. Nc3 {[%clk 0:03:00.6]} 3... c6 {[%clk 0:02:58]}
4. f4 {[%clk 0:03:00.5]} 4... Qa5 {[%clk 0:02:57.1]} 5. Bd3 {[%clk 0:02:59]}
5... e5 {[%clk 0:02:56.6]} 6. Nf3 {[%clk 0:02:44.1]} 6... exd4 {[%clk
0:02:55.7]} 7. Nxd4 {[%clk 0:02:44]} 7... Qb6 {[%clk 0:02:55.3]} 8. Nf3 {[%clk
0:02:33]} 8... Be7 {[%clk 0:02:53.5]} 9. Qe2 {[%clk 0:02:32.4]} 9... O-O {[%clk
0:02:52.2]} 10. Rb1 {[%clk 0:02:32.6]} 10... Bg4 {[%clk 0:02:49.4]} 11. Be3
{[%clk 0:02:32.1]} 11... Qc7 {[%clk 0:02:48.4]} 12. h3 {[%clk 0:02:31.5]} 12...
Bxf3 {[%clk 0:02:47.6]} 13. Qxf3 {[%clk 0:02:32.4]} 13... Nbd7 {[%clk
0:02:46.8]} 14. g4 {[%clk 0:02:29.7]} 14... Ne8 {[%clk 0:02:43.1]} 15. g5 {[%clk
0:02:24.9]} 15... g6 {[%clk 0:02:38.4]} 16. h4 {[%clk 0:02:25]} 16... Ng7 {[%clk
0:02:38]} 17. h5 {[%clk 0:02:11.3]} 17... Nxh5 {[%clk 0:02:27.9]} 18. Rxh5
{[%clk 0:02:10.2]} 18... gxh5 {[%clk 0:02:27.4]} 19. Qxh5 {[%clk 0:02:11.1]}
19... Rfe8 {[%clk 0:02:07.3]} 20. e5 {[%clk 0:01:41.4]} 20... Nf8 {[%clk
0:02:04.2]} 21. f5 {[%clk 0:01:40.5]} 21... dxe5 {[%clk 0:01:47.9]} 22. f6
{[%clk 0:01:28.2]} 22... Ng6 {[%clk 0:01:43.4]} 23. fxe7 {[%clk 0:00:46.9]}
23... Qa5 {[%clk 0:01:16.6]} 24. Kf1 {[%clk 0:00:33.2]} 24... e4 {[%clk
0:01:10.2]} 25. Nxe4 {[%clk 0:00:32.9]} 25... Qf5+ {[%clk 0:01:04.4]} 26. Kg2
{[%clk 0:00:30.6]} 26... Qd5 {[%clk 0:00:38.3]} 27. Kg1 {[%clk 0:00:21.5]} 27...
Rxe7 {[%clk 0:00:23.2]} 28. Nf6+ {[%clk 0:00:19.3]} 28... Kf8 {[%clk 0:00:21.3]}
29. Qh6# {[%clk 0:00:19.4]} 1-0

[Event "*** Titled Tuesday Blitz"]
[Site "Chess.com"]
[Date "2020.04.14"]
[Round "4"]
[White "vladimirdamjanovic"]
[Black "EvgenyRomanov"]
[Result "1-0"]
[WhiteElo "2541"]
[BlackElo "2249"]
[TimeControl "180+1"]
[EndTime "10:38:59 PDT"]
[Termination "vladimirdamjanovic won by resignation"]

1. d4 {[%clk 0:03:00.9]} 1... d5 {[%clk 0:02:56.8]} 2. c4 {[%clk 0:03:00.2]}
2... dxc4 {[%clk 0:02:57.5]} 3. e3 {[%clk 0:03:00.2]} 3... b5 {[%clk 0:02:55.5]}
4. a4 {[%clk 0:02:59]} 4... b4 {[%clk 0:02:52.8]} 5. Bxc4 {[%clk 0:02:57.7]}
5... e6 {[%clk 0:02:53]} 6. Nf3 {[%clk 0:02:55]} 6... Nf6 {[%clk 0:02:51.9]} 7.
O-O {[%clk 0:02:53.5]} 7... Be7 {[%clk 0:02:52]} 8. Nbd2 {[%clk 0:02:52.8]} 8...
Bb7 {[%clk 0:02:50.6]} 9. b3 {[%clk 0:02:52.9]} 9... O-O {[%clk 0:02:49.5]} 10.
Bb2 {[%clk 0:02:53.3]} 10... Nbd7 {[%clk 0:02:48.8]} 11. Qe2 {[%clk 0:02:53.2]}
11... c5 {[%clk 0:02:48.4]} 12. Rfd1 {[%clk 0:02:51.1]} 12... Rc8 {[%clk
0:02:47.6]} 13. Rac1 {[%clk 0:02:49.2]} 13... cxd4 {[%clk 0:02:47.3]} 14. Nxd4
{[%clk 0:02:47.8]} 14... Nc5 {[%clk 0:02:46.3]} 15. e4 {[%clk 0:02:44.7]} 15...
Qb6 {[%clk 0:02:38.7]} 16. e5 {[%clk 0:02:19.7]} 16... Nd5 {[%clk 0:02:37.5]}
17. Qg4 {[%clk 0:02:18.1]} 17... Rfd8 {[%clk 0:02:30.5]} 18. Ba1 {[%clk
0:02:14.5]} 18... Nc3 {[%clk 0:02:24]} 19. Bxc3 {[%clk 0:02:10.2]} 19... bxc3
{[%clk 0:02:24.8]} 20. Rxc3 {[%clk 0:02:11.1]} 20... Bf8 {[%clk 0:01:49.2]} 21.
Rg3 {[%clk 0:02:05.8]} 21... a6 {[%clk 0:01:37.4]} 22. h4 {[%clk 0:02:01.4]}
22... Bd5 {[%clk 0:01:34.5]} 23. h5 {[%clk 0:01:58.4]} 23... Qb8 {[%clk
0:01:27]} 24. h6 {[%clk 0:01:57]} 24... g6 {[%clk 0:01:25]} 25. Qf4 {[%clk
0:01:56.4]} 25... Bxc4 {[%clk 0:01:07.9]} 26. Nxc4 {[%clk 0:01:51]} 26... Nxa4
{[%clk 0:00:49.2]} 27. Nd6 {[%clk 0:01:47.2]} 27... Rxd6 {[%clk 0:00:37.6]} 28.
exd6 {[%clk 0:01:46.1]} 28... Bxd6 {[%clk 0:00:36.3]} 29. Qf6 {[%clk 0:01:43.9]}
29... Be5 {[%clk 0:00:36]} 30. Qh4 {[%clk 0:01:40.5]} 30... Nb2 {[%clk 0:00:24]}
31. Nc6 {[%clk 0:01:28.9]} 31... Bxg3 {[%clk 0:00:17.6]} 32. fxg3 {[%clk
0:01:25.9]} 32... Qb6+ {[%clk 0:00:12.4]} 33. Kh2 {[%clk 0:01:25.3]} 33... Qe3
{[%clk 0:00:06.3]} 34. Rd8+ {[%clk 0:01:22.4]} 1-0

[Event "*** Titled Tuesday Blitz"]
[Site "Chess.com"]
[Date "2020.04.14"]
[Round "4"]
[White "mc4chess"]
[Black "GracefulYear"]
[Result "0-1"]
[WhiteElo "2364"]
[BlackElo "2689"]
[TimeControl "180+1"]
[EndTime "10:38:59 PDT"]
[Termination "GracefulYear won on time"]

1. e4 {[%clk 0:03:00.9]} 1... c6 {[%clk 0:02:59.1]} 2. d4 {[%clk 0:03:00.3]}
2... d5 {[%clk 0:02:58.8]} 3. Nc3 {[%clk 0:03:00.6]} 3... dxe4 {[%clk
0:02:58.4]} 4. Nxe4 {[%clk 0:03:01.5]} 4... Bf5 {[%clk 0:02:58.2]} 5. Ng3 {[%clk
0:03:01]} 5... Bg6 {[%clk 0:02:58.1]} 6. Nf3 {[%clk 0:03:01.4]} 6... Nd7 {[%clk
0:02:56.6]} 7. h4 {[%clk 0:03:00.7]} 7... h6 {[%clk 0:02:50.1]} 8. h5 {[%clk
0:03:01.2]} 8... Bh7 {[%clk 0:02:48.9]} 9. Bd3 {[%clk 0:03:02.1]} 9... Bxd3
{[%clk 0:02:47.2]} 10. Qxd3 {[%clk 0:03:03]} 10... e6 {[%clk 0:02:46]} 11. Bd2
{[%clk 0:03:03.5]} 11... Ngf6 {[%clk 0:02:45.4]} 12. O-O-O {[%clk 0:03:03.7]}
12... Qc7 {[%clk 0:02:45.7]} 13. Kb1 {[%clk 0:02:49.6]} 13... Bd6 {[%clk
0:02:45.5]} 14. Ne4 {[%clk 0:02:47.8]} 14... Nxe4 {[%clk 0:02:43.6]} 15. Qxe4
{[%clk 0:02:48.7]} 15... Nf6 {[%clk 0:02:43.8]} 16. Qe2 {[%clk 0:02:48]} 16...
O-O-O {[%clk 0:02:43.1]} 17. g4 {[%clk 0:02:36.4]} 17... Bf4 {[%clk 0:02:36]}
18. Rhg1 {[%clk 0:02:33.6]} 18... Kb8 {[%clk 0:02:25.3]} 19. Bxf4 {[%clk
0:02:00]} 19... Qxf4 {[%clk 0:02:18.7]} 20. Qe5+ {[%clk 0:02:00.9]} 20... Qxe5
{[%clk 0:02:17.3]} 21. Nxe5 {[%clk 0:02:01.8]} 21... Rhf8 {[%clk 0:02:13.9]} 22.
Rg3 {[%clk 0:00:57.3]} 22... Ne4 {[%clk 0:01:58.9]} 23. Rf3 {[%clk 0:00:55.4]}
23... f6 {[%clk 0:01:57.2]} 24. Ng6 {[%clk 0:00:49.5]} 24... Rf7 {[%clk
0:01:57.2]} 25. c3 {[%clk 0:00:31]} 25... Rfd7 {[%clk 0:01:53.4]} 26. Kc2 {[%clk
0:00:27.4]} 26... c5 {[%clk 0:01:50.7]} 27. Re1 {[%clk 0:00:13.7]} 27... Ng5
{[%clk 0:01:49]} 28. Rd3 {[%clk 0:00:12.6]} 28... cxd4 {[%clk 0:01:48.7]} 29. f4
{[%clk 0:00:12.7]} 29... Nf7 {[%clk 0:01:43.3]} 30. Rxe6 {[%clk 0:00:12.3]}
30... dxc3 {[%clk 0:01:42.6]} 31. Rxc3 {[%clk 0:00:12.5]} 31... Nd6 {[%clk
0:01:40]} 32. Kb3 {[%clk 0:00:10.8]} 32... Nb5 {[%clk 0:01:39.5]} 33. Rce3
{[%clk 0:00:09.8]} 33... Nd4+ {[%clk 0:01:39.6]} 34. Kc4 {[%clk 0:00:09.1]}
34... Nxe6 {[%clk 0:01:40.5]} 35. Rxe6 {[%clk 0:00:09.5]} 35... Rd3 {[%clk
0:01:40.2]} 36. Re7 {[%clk 0:00:08.2]} 36... R3d4+ {[%clk 0:01:40.2]} 37. Kc3
{[%clk 0:00:08.2]} 37... R4d7 {[%clk 0:01:40.6]} 38. Re6 {[%clk 0:00:07.9]}
38... Rc7+ {[%clk 0:01:39]} 39. Kb3 {[%clk 0:00:07.8]} 39... b5 {[%clk
0:01:38.6]} 40. a3 {[%clk 0:00:07.7]} 40... Kb7 {[%clk 0:01:38]} 41. Nh4 {[%clk
0:00:07.1]} 41... a5 {[%clk 0:01:38.3]} 42. Nf5 {[%clk 0:00:07.3]} 42... Rd2
{[%clk 0:01:36.2]} 43. a4 {[%clk 0:00:05.5]} 43... bxa4+ {[%clk 0:01:35.8]} 44.
Kxa4 {[%clk 0:00:05.4]} 44... Rxb2 {[%clk 0:01:35.6]} 45. Ne3 {[%clk 0:00:05]}
45... Rc1 {[%clk 0:01:29.9]} 46. Ka3 {[%clk 0:00:02.7]} 46... Rb4 {[%clk
0:01:23.8]} 0-1

[Event "*** Titled Tuesday Blitz"]
[Site "Chess.com"]
[Date "2020.04.14"]
[Round "4"]
[White "HashtagChess"]
[Black "ApacheSVD"]
[Result "0-1"]
[WhiteElo "1640"]
[BlackElo "2375"]
[TimeControl "180+1"]
[EndTime "10:38:59 PDT"]
[Termination "ApacheSVD won by resignation"]

1. e4 {[%clk 0:03:00.9]} 1... c5 {[%clk 0:02:59.6]} 2. Nf3 {[%clk 0:02:59.2]}
2... d6 {[%clk 0:02:59.7]} 3. d4 {[%clk 0:02:59.7]} 3... cxd4 {[%clk 0:03:00.6]}
4. Nxd4 {[%clk 0:03:00.5]} 4... Nf6 {[%clk 0:03:00.5]} 5. Nc3 {[%clk 0:02:58.9]}
5... g6 {[%clk 0:03:00.5]} 6. Be3 {[%clk 0:02:56.1]} 6... Bg7 {[%clk 0:03:00.8]}
7. Qd2 {[%clk 0:02:40.5]} 7... O-O {[%clk 0:02:51.6]} 8. O-O-O {[%clk
0:02:31.5]} 8... Ng4 {[%clk 0:02:49.5]} 9. Bg5 {[%clk 0:02:27.3]} 9... h6 {[%clk
0:02:22.6]} 10. h3 {[%clk 0:02:02.7]} 10... Nxf2 {[%clk 0:02:02.3]} 11. Bxe7
{[%clk 0:01:59.3]} 11... Qxe7 {[%clk 0:01:50]} 12. Qxf2 {[%clk 0:01:58.4]} 12...
Nc6 {[%clk 0:01:49.5]} 13. Nxc6 {[%clk 0:01:29.3]} 13... bxc6 {[%clk 0:01:50.4]}
14. Qg3 {[%clk 0:01:20]} 14... Be5 {[%clk 0:01:45.3]} 15. Qd3 {[%clk 0:01:14.4]}
15... Rb8 {[%clk 0:01:38.9]} 16. Be2 {[%clk 0:00:57]} 16... Qg5+ {[%clk
0:00:49.3]} 17. Kb1 {[%clk 0:00:52.2]} 17... Ba6 {[%clk 0:00:49.7]} 18. Qxa6
{[%clk 0:00:38.8]} 18... Rxb2+ {[%clk 0:00:35.8]} 19. Kxb2 {[%clk 0:00:12.7]}
19... Rb8+ {[%clk 0:00:35.3]} 20. Ka3 {[%clk 0:00:12.2]} 20... Bxc3 {[%clk
0:00:32.2]} 21. Rb1 {[%clk 0:00:12.1]} 21... Qc5+ {[%clk 0:00:28.2]} 22. Ka4
{[%clk 0:00:08.9]} 22... Rb4+ {[%clk 0:00:28.4]} 0-1

[Event "*** Titled Tuesday Blitz"]
[Site "Chess.com"]
[Date "2020.04.14"]
[Round "4"]
[White "DenishevM"]
[Black "onnoelgersma"]
[Result "1-0"]
[WhiteElo "2615"]
[BlackElo "2356"]
[TimeControl "180+1"]
[EndTime "10:39:00 PDT"]
[Termination "DenishevM won by resignation"]

1. d4 {[%clk 0:03:00.9]} 1... d5 {[%clk 0:02:58.2]} 2. c4 {[%clk 0:03:01.1]}
2... e6 {[%clk 0:02:58.8]} 3. Nf3 {[%clk 0:03:00.9]} 3... Nf6 {[%clk 0:02:57.9]}
4. g3 {[%clk 0:03:01.3]} 4... dxc4 {[%clk 0:02:57.7]} 5. Bg2 {[%clk 0:03:00.8]}
5... a6 {[%clk 0:02:58.2]} 6. O-O {[%clk 0:02:59.1]} 6... Nc6 {[%clk 0:02:58.6]}
7. a4 {[%clk 0:02:47.3]} 7... Rb8 {[%clk 0:02:57.8]} 8. e3 {[%clk 0:02:38.6]}
8... b5 {[%clk 0:02:57.3]} 9. axb5 {[%clk 0:02:39.5]} 9... axb5 {[%clk
0:02:58.1]} 10. b3 {[%clk 0:02:40.1]} 10... cxb3 {[%clk 0:02:51.3]} 11. Qxb3
{[%clk 0:02:41]} 11... Be7 {[%clk 0:02:50.9]} 12. Nc3 {[%clk 0:02:32.5]} 12...
b4 {[%clk 0:02:39.7]} 13. Na4 {[%clk 0:02:23]} 13... O-O {[%clk 0:02:39.5]} 14.
Bb2 {[%clk 0:02:10.8]} 14... Na5 {[%clk 0:02:37.6]} 15. Qc2 {[%clk 0:02:04.1]}
15... Bb7 {[%clk 0:02:33]} 16. Nc5 {[%clk 0:01:55.6]} 16... Bxc5 {[%clk
0:02:09.7]} 17. dxc5 {[%clk 0:01:56.5]} 17... Nc6 {[%clk 0:02:07]} 18. Ng5
{[%clk 0:01:35.3]} 18... e5 {[%clk 0:01:59.9]} 19. Ne4 {[%clk 0:01:29.4]} 19...
Nxe4 {[%clk 0:01:55.4]} 20. Bxe4 {[%clk 0:01:30.3]} 20... h6 {[%clk 0:01:50.4]}
21. Rfd1 {[%clk 0:01:23.5]} 21... Qe7 {[%clk 0:01:45.1]} 22. Qc4 {[%clk
0:01:23.7]} 22... Qf6 {[%clk 0:01:04.6]} 23. Rd7 {[%clk 0:01:16.7]} 23... Rfc8
{[%clk 0:00:44.2]} 24. Rxf7 {[%clk 0:01:07.8]} 24... Qxf7 {[%clk 0:00:41.3]} 25.
Bd5 {[%clk 0:01:06.7]} 25... Nd8 {[%clk 0:00:42.2]} 26. c6 {[%clk 0:00:56.8]}
26... Ba8 {[%clk 0:00:42.2]} 27. Bxe5 {[%clk 0:00:51.2]} 27... Kf8 {[%clk
0:00:42.1]} 28. Bxf7 {[%clk 0:00:49.5]} 28... Nxf7 {[%clk 0:00:43]} 29. Bb2
{[%clk 0:00:38.6]} 29... Rb6 {[%clk 0:00:26.7]} 30. Qg4 {[%clk 0:00:29]} 1-0

[Event "*** Titled Tuesday Blitz"]
[Site "Chess.com"]
[Date "2020.04.14"]
[Round "4"]
[White "Borsuk_Konstantin"]
[Black "zivicd"]
[Result "1-0"]
[WhiteElo "2481"]
[BlackElo "2237"]
[TimeControl "180+1"]
[EndTime "10:39:00 PDT"]
[Termination "Borsuk_Konstantin won by checkmate"]

1. d4 {[%clk 0:03:00.9]} 1... Nf6 {[%clk 0:02:59.1]} 2. c4 {[%clk 0:03:01.3]}
2... e6 {[%clk 0:02:58]} 3. Nc3 {[%clk 0:03:01.8]} 3... Bb4 {[%clk 0:02:57.3]}
4. Qc2 {[%clk 0:03:01.5]} 4... c5 {[%clk 0:02:56.6]} 5. dxc5 {[%clk 0:03:02.4]}
5... O-O {[%clk 0:02:55.2]} 6. a3 {[%clk 0:03:02]} 6... Bxc5 {[%clk 0:02:54.9]}
7. Nf3 {[%clk 0:03:02.4]} 7... b6 {[%clk 0:02:54.6]} 8. Bg5 {[%clk 0:03:01.9]}
8... h6 {[%clk 0:02:53.6]} 9. Bh4 {[%clk 0:03:01.2]} 9... Be7 {[%clk 0:02:50.3]}
10. e4 {[%clk 0:03:00.1]} 10... d6 {[%clk 0:02:42.2]} 11. O-O-O {[%clk
0:02:59.1]} 11... Ne8 {[%clk 0:02:09.2]} 12. Bg3 {[%clk 0:02:55.1]} 12... Bb7
{[%clk 0:01:50.4]} 13. e5 {[%clk 0:02:40.4]} 13... d5 {[%clk 0:01:43.4]} 14.
cxd5 {[%clk 0:02:20.9]} 14... exd5 {[%clk 0:01:40.8]} 15. Bc4 {[%clk 0:02:13.3]}
15... Nc7 {[%clk 0:01:37.7]} 16. Kb1 {[%clk 0:02:09.9]} 16... a6 {[%clk
0:01:32.2]} 17. Bb3 {[%clk 0:02:01.1]} 17... b5 {[%clk 0:01:27.9]} 18. Rd4
{[%clk 0:01:53.1]} 18... Nc6 {[%clk 0:01:24.1]} 19. Rg4 {[%clk 0:01:42.1]} 19...
b4 {[%clk 0:01:10.8]} 20. Ne2 {[%clk 0:01:37.1]} 20... bxa3 {[%clk 0:00:59.1]}
21. Nf4 {[%clk 0:01:36.5]} 21... Nb4 {[%clk 0:00:53.5]} 22. Qd2 {[%clk
0:01:17.2]} 22... a2+ {[%clk 0:00:51.1]} 23. Ka1 {[%clk 0:01:15.6]} 23... Bc8
{[%clk 0:00:50.7]} 24. e6 {[%clk 0:00:56.8]} 24... fxe6 {[%clk 0:00:26.6]} 25.
Nh5 {[%clk 0:00:55.4]} 25... g5 {[%clk 0:00:11.1]} 26. Rxb4 {[%clk 0:00:32.8]}
26... Bxb4 {[%clk 0:00:10.2]} 27. Qxb4 {[%clk 0:00:33.7]} 27... Rb8 {[%clk
0:00:10]} 28. Qd4 {[%clk 0:00:32]} 28... Rxb3 {[%clk 0:00:09.4]} 29. Qg7# {[%clk
0:00:31.5]} 1-0

[Event "*** Titled Tuesday Blitz"]
[Site "Chess.com"]
[Date "2020.04.14"]
[Round "4"]
[White "lucasran"]
[Black "jerry_77"]
[Result "0-1"]
[WhiteElo "2642"]
[BlackElo "2471"]
[TimeControl "180+1"]
[EndTime "10:39:01 PDT"]
[Termination "jerry_77 won on time"]

1. Nf3 {[%clk 0:03:00.9]} 1... Nf6 {[%clk 0:02:57.9]} 2. c4 {[%clk 0:03:00.8]}
2... e6 {[%clk 0:02:56]} 3. g3 {[%clk 0:03:00.5]} 3... d5 {[%clk 0:02:56.1]} 4.
Bg2 {[%clk 0:03:00.8]} 4... Be7 {[%clk 0:02:56.4]} 5. O-O {[%clk 0:03:00.8]}
5... O-O {[%clk 0:02:57]} 6. b3 {[%clk 0:03:01.2]} 6... d4 {[%clk 0:02:57.3]} 7.
e3 {[%clk 0:02:56.9]} 7... c5 {[%clk 0:02:57.8]} 8. exd4 {[%clk 0:02:56.7]} 8...
cxd4 {[%clk 0:02:58.7]} 9. d3 {[%clk 0:02:57.2]} 9... Nc6 {[%clk 0:02:58.8]} 10.
Bg5 {[%clk 0:02:57.1]} 10... h6 {[%clk 0:02:58.5]} 11. Bxf6 {[%clk 0:02:57]}
11... Bxf6 {[%clk 0:02:59.4]} 12. a3 {[%clk 0:02:57.1]} 12... a5 {[%clk
0:02:59.1]} 13. Nbd2 {[%clk 0:02:57.5]} 13... e5 {[%clk 0:02:59.2]} 14. Qc2
{[%clk 0:02:54.9]} 14... Bf5 {[%clk 0:02:58.2]} 15. c5 {[%clk 0:02:52]} 15...
Re8 {[%clk 0:02:54.5]} 16. Rfe1 {[%clk 0:02:46.5]} 16... e4 {[%clk 0:02:37.7]}
17. Nh4 {[%clk 0:01:44.6]} 17... exd3 {[%clk 0:02:35.6]} 18. Rxe8+ {[%clk
0:01:43.1]} 18... Qxe8 {[%clk 0:02:33.9]} 19. Qc4 {[%clk 0:01:19]} 19... Bxh4
{[%clk 0:02:26.2]} 20. gxh4 {[%clk 0:01:18.6]} 20... Qe2 {[%clk 0:02:22.9]} 21.
Nf3 {[%clk 0:01:09.4]} 21... Be6 {[%clk 0:01:49.4]} 22. Qb5 {[%clk 0:01:08.3]}
22... Qb2 {[%clk 0:01:46]} 23. Rd1 {[%clk 0:01:00.4]} 23... Qxb3 {[%clk
0:01:32.4]} 24. Qxb3 {[%clk 0:00:59.4]} 24... Bxb3 {[%clk 0:01:33.3]} 25. Rxd3
{[%clk 0:00:59.5]} 25... Bc4 {[%clk 0:01:32.5]} 26. Rd2 {[%clk 0:00:48.9]} 26...
Rd8 {[%clk 0:01:32.1]} 27. Rb2 {[%clk 0:00:23.7]} 27... Ba6 {[%clk 0:01:26.8]}
28. Nd2 {[%clk 0:00:22.5]} 28... Re8 {[%clk 0:01:20.7]} 29. Bf3 {[%clk
0:00:10.5]} 29... Ne5 {[%clk 0:01:09.5]} 30. Bxb7 {[%clk 0:00:08.3]} 30... Rb8
{[%clk 0:01:09.5]} 31. Bxa6 {[%clk 0:00:01.6]} 31... Rxb2 {[%clk 0:01:09.1]} 32.
Ne4 {[%clk 0:00:02.3]} 32... d3 {[%clk 0:01:06.6]} 33. Kf1 {[%clk 0:00:02]}
33... Rb1+ {[%clk 0:01:03.8]} 34. Kg2 {[%clk 0:00:02.4]} 34... Re1 {[%clk
0:01:00.6]} 35. Nd6 {[%clk 0:00:01.8]} 35... d2 {[%clk 0:00:58.7]} 36. c6 {[%clk
0:00:02]} 36... Nxc6 {[%clk 0:00:58.4]} 0-1

[Event "*** Titled Tuesday Blitz"]
[Site "Chess.com"]
[Date "2020.04.14"]
[Round "4"]
[White "Beca95"]
[Black "tvjosue"]
[Result "1-0"]
[WhiteElo "2885"]
[BlackElo "2483"]
[TimeControl "180+1"]
[EndTime "10:39:01 PDT"]
[Termination "Beca95 won by resignation"]

1. d4 {[%clk 0:03:00.9]} 1... f5 {[%clk 0:02:58.4]} 2. Nf3 {[%clk 0:02:59.9]}
2... Nf6 {[%clk 0:02:58.3]} 3. Bg5 {[%clk 0:02:59.7]} 3... e6 {[%clk 0:02:58.3]}
4. Nbd2 {[%clk 0:02:59.1]} 4... b6 {[%clk 0:02:58.3]} 5. e4 {[%clk 0:02:57.8]}
5... fxe4 {[%clk 0:02:59.2]} 6. Nxe4 {[%clk 0:02:58.1]} 6... Be7 {[%clk
0:02:58.2]} 7. Bxf6 {[%clk 0:02:57.5]} 7... Bxf6 {[%clk 0:02:59.1]} 8. Bd3
{[%clk 0:02:57.4]} 8... Bb7 {[%clk 0:02:59.7]} 9. c3 {[%clk 0:02:56.5]} 9... Nc6
{[%clk 0:02:59.8]} 10. Qe2 {[%clk 0:02:56.2]} 10... O-O {[%clk 0:02:59.6]} 11.
h4 {[%clk 0:02:55.6]} 11... Ne7 {[%clk 0:02:59]} 12. O-O-O {[%clk 0:02:54.5]}
12... Rc8 {[%clk 0:02:51.5]} 13. Bc2 {[%clk 0:02:38.3]} 13... Nd5 {[%clk
0:02:48.9]} 14. g3 {[%clk 0:02:37.4]} 14... Qe8 {[%clk 0:02:47.3]} 15. Neg5
{[%clk 0:02:31.7]} 15... h6 {[%clk 0:02:37.7]} 16. Qd3 {[%clk 0:02:22.5]} 16...
g6 {[%clk 0:02:36]} 17. Ne4 {[%clk 0:02:21.3]} 17... Bg7 {[%clk 0:02:33]} 18. h5
{[%clk 0:02:21.6]} 18... Qf7 {[%clk 0:02:22.1]} 19. Ned2 {[%clk 0:02:06.8]}
19... Ne7 {[%clk 0:02:17.5]} 20. hxg6 {[%clk 0:02:04.9]} 20... Qf6 {[%clk
0:02:16.1]} 21. Rh4 {[%clk 0:01:54.3]} 21... Bxf3 {[%clk 0:02:11.2]} 22. Rf4
{[%clk 0:01:50.6]} 22... Qxf4 {[%clk 0:01:53.7]} 23. gxf4 {[%clk 0:01:45.8]}
23... Bxd1 {[%clk 0:01:54.6]} 24. Kxd1 {[%clk 0:01:40.4]} 24... Rxf4 {[%clk
0:01:54.5]} 25. f3 {[%clk 0:01:40.8]} 25... Rcf8 {[%clk 0:01:53.9]} 26. Qa6
{[%clk 0:01:40.3]} 26... Nc6 {[%clk 0:01:45.9]} 27. Qb7 {[%clk 0:01:39.2]} 27...
Rh4 {[%clk 0:01:25.3]} 28. Qxc7 {[%clk 0:01:38.5]} 28... h5 {[%clk 0:01:14.5]}
29. Be4 {[%clk 0:01:31.8]} 29... d5 {[%clk 0:01:04.2]} 30. Qxc6 {[%clk
0:01:29.9]} 30... dxe4 {[%clk 0:01:04.7]} 31. Nxe4 {[%clk 0:01:24.6]} 31... Rh1+
{[%clk 0:00:36.1]} 32. Kc2 {[%clk 0:01:22.9]} 32... Rg1 {[%clk 0:00:37]} 33.
Qxe6+ {[%clk 0:01:19.7]} 33... Kh8 {[%clk 0:00:37.4]} 34. Nd6 {[%clk 0:01:19.5]}
34... Rg2+ {[%clk 0:00:13.3]} 35. Kb3 {[%clk 0:01:17.9]} 35... Bh6 {[%clk
0:00:07.6]} 36. Nf5 {[%clk 0:01:04.6]} 36... Bg7 {[%clk 0:00:06.9]} 37. Nxg7
{[%clk 0:01:02.3]} 37... Kxg7 {[%clk 0:00:06.8]} 38. Qe7+ {[%clk 0:01:02.7]} 1-0